Workbook

Sheet Instructions for use

Sheet Key Questions & Results Summary
C2: Questions | E2: Inputs
B4: Q1 | C4: What type of problem / benefits do you anticipate? | G4: =IF(E4="Other","Please use alternative method to estimate the high level BCR.","") -> 
B6: Q1a | C6: What is the secondary type of problem / benefits (if any - leave blank if no secondary problem/benefit needed to be included? | G6: =IF(E4="Other","No furher inputs required","") -> 
B8: Q2 | C8: What are the characteristics of the transport system being assessed ?
C9: =IF(OR(ISBLANK(E4),E4="Other"),"","Please input fields for "&E4&IF(ISBLANK(E6),"in the Benefit Inputs worksheet"," and "&E6&" in the Benefit Inputs worksheet")) -> 
B11: Q3 | C11: What is the expected level of investment needed to address the identified problem/s?
B13: Cost Input
B15: Additional Service Provide Costs (per year) - O&M | G15: =IF(OR(E4="Access - Public Transport",E6="Access - Public Transport"),"","No inputs required") -> No inputs required
K17: Results
K18: Benefit
B19: Discount Rate | C19: 0.04 | K19: Safety | L19: =Safety!D36 -> 
K20: Access - Active Modes | L20: ='Access - Active Modes'!D60+'Access - Active Modes'!E60 -> 
B21: Indicative Efficiency Rating Tool Results | K21: Access - Congestion | L21: ='Access - Congestion'!D35 -> 
K22: Access - Resilience | L22: ='Access - Resilience'!D27 -> 
B23: =K42 -> Benefits | K23: Access - Public Transport | L23: ='Access - Public Transport'!D35 -> 0
B24: =K43 -> 0 | C24: =L43 -> 
B25: =K44 -> 0 | C25: =L44 -> 0
B26: Total | C26: =L45 ->  | K26: BCR | L26: =C26/C30 -> 
K27: Mean | L27: =L26*0.8 -> 
B28: Costs | C28: =L46 -> 0 | K28: Stdev | L28: =L26*0.3 -> 
K29: 1 | L29: =_xlfn.NORM.DIST($K$29,$L$27,$L$28,TRUE) ->  | M29: Very low | N29: Less than 1
B30: Total | C30: =L46 -> 0 | K30: 2.9 | L30: =_xlfn.NORM.DIST($K30,$L$27,$L$28,TRUE)-L29 ->  | M30: Low | N30: 1-2.4
K31: 5.9 | L31: =_xlfn.NORM.DIST($K31,$L$27,$L$28,TRUE)-SUM($L$29:L30) ->  | M31: Medium | N31: 2.5-3.9
B32: IER | C32: =C26/C30*0.5 ->  | E32: =C26/C30*1.1 ->  | K32: 9.9 | L32: =_xlfn.NORM.DIST($K32,$L$27,$L$28,TRUE)-SUM($L$29:L31) ->  | M32: High | N32: 4.0-7.0
K33: >10 | L33: =1-SUM(L29:L32) ->  | M33: Very High | N33: Greater than 7
E35: Outputs
B37: Suggested Efficiency Rating | E37: =VLOOKUP(MAX(L29:L33),L29:M33,2,FALSE) -> 
B39: IER range | E39: =VLOOKUP(E37,M29:N33,2,FALSE) -> 
K42: Benefits
K43: =E4 -> 0 | L43: =VLOOKUP(K43,$K$16:$M$25,2,FALSE) -> 
K44: =E6 -> 0 | L44: =IF(ISBLANK(E6),0,VLOOKUP(K44,$K$16:$M$25,2,FALSE)) -> 0
L45: =L43+L44 -> 
K46: Costs | L46: =E13/(1+discountrate)+E15*Lookups!E142 -> 0
K51: eBCR | L51: =L45/L46 -> 

Sheet Benefit Inputs
B2: Safety
B3: Total number of DSI over the past 5 years | D3: * Crash data can be obtained from CAS
B5: Speed Environment
B10: SSI Intervention? | D10: =IF(C10="Yes","Please use SSI Intervention Tool to estimate the SSI benefits","") -> 
B12: =IF(C10="No","Non-SSI Intervention Type","") ->  | D12: =IF(C10="No","describe type of proposed/likely non-DSI intervetion","No input required") -> No input required
B14: =IF(C10="No","Non-SSI DSI Reduction, %","") ->  | D14: =IF(C10="No","for manual inputs. Refer to EEM Crash Compendium (or others) for suggested reduction %","No input required") -> No input required
B17: Access - Active Modes | C17: * Demand can be estimated from the regional active mode models (if available)
B19: Region
B21: Statistical Area 2 (SA2) | D21: *If the project spans multiple areas, use the area where most of the trips will be generated
B23: Locality Characteristics
B25: Walking Facility Length (km) | D25: * Leave blank if no walking facility
B27: Cycling Facility Length (km) | D27: * Leave blank if no cycling facility
B30: Access - Congestion
B33: Road Category | E33: *definitions of this can be found in the MBCM
B35: Traffic Volume (veh/day) | E35: * Or alternatively only include total peak hour traffic volume
B37: Existing travel time (min)
B39: Target percentage improvements in travel time | E39: =IF(ISBLANK(D37),"","Equivalent to "&ROUND(D37*D39,1)&" minutes reduction for all traffic") -> 
B42: Access - Public Transport
B43: Current PT Patronage (pax/day)
B45: Target total PT Patronage (pax/day) | D45: =IF(ISBLANK(C45),"","Equivalent to additional of "&ROUND((C45-C43)*250,0)&" passengers per year") -> 
B47: Existing travel time (min)
B49: Target percentage improvements in travel time | D49: =IF(ISBLANK(C49),"","Equivalent to "&ROUND(C47*C49,1)&" minutes reduction") -> 
B52: Access - Resilience
B53: What is the impacted traffic volume per day
B55: Road Category | E55: *definitions of this can be found in the MBCM
B57: Estimated Number of Closure per Year
B59: Average Period of Closure (or loss of service), in hours
B61: Disruption / detour time during closure, in hours per vehicle
B63: Estimated % of resilience problems removed by proposed activity

Sheet Safety (hidden)
A1: Q1 | C1: Characteristic of Activity | D1: Safety as Primary/Secondary Benefit Type
C2: Total number of DSI over the past 5 years | D2: ='Benefit Inputs'!C3 -> 0 | E2: * Crash data can be obtained from CAS
C4: Speed Environment | D4: ='Benefit Inputs'!C5 -> 0
C9: SSI Intervention? | D9: ='Benefit Inputs'!C10 -> 0 | E9: =IF(D9="Yes","Please use SSI Intervention Tool to estimate the SSI benefits","") -> 
B14: FOR NON SSI ACTIVITIES | C14: =IF(D9="No","Non-SSI Intervention Type","") ->  | D14: ='Benefit Inputs'!C12 -> 0 | E14: =IF(D9="No","input type of proposed/likely non-DSI intervetion","No input required") -> No input required
C16: =IF(D9="No","Non-SSI DSI Reduction, %","") ->  | D16: ='Benefit Inputs'!C14 -> 0 | E16: =IF(D9="No","for manual inputs. Refer to EEM Crash Compendium (or others) for suggested reduction %","No input required") -> No input required
A19: Q2
C28: Benefit Calculation
C29: DSI/year | D29: =D2/5 -> 0
C30: $ per DSI | D30: =VLOOKUP($D$4,DSIvalues,3,FALSE)*crashcostupdatefactor -> 
C32: Benefit per year | D32: =D29*D16*D30 -> 
C36: 40 year benefit range | D36: =D32*Lookups!$E$142 -> 

Sheet Access - Active Modes (hidden)
A1: Q3 | C1: Characteristic of Activity | D1: Walking and/or Cycling as Primary/Secondary Benefit Type | E1: * Demand can be estimated from the regional active mode models (if available)
C3: Region | D3: ='Benefit Inputs'!C19 -> 0
C5: Statistical Area 2 (SA2) | D5: ='Benefit Inputs'!C21 -> 0 | E5: * Sequencing following Census SA2 ID number
C7: Locality Characteristics | D7: ='Benefit Inputs'!C23 -> 0
A15: Q4 | C15: Walking Facility Length (km) | D15: ='Benefit Inputs'!C25 -> 0 | E15: * Leave blank if no walking facility
C20: Cycling Facility Length (km) | D20: ='Benefit Inputs'!C27 -> 0 | E20: * Leave blank if no cycling facility
C31: Population Density | D31: =VLOOKUP(D5,SA2popdensity,2,FALSE) -> 
C32: Trip Generation (per person) | D32: =10/2.7 -> 3.703703704 | E32: *assumed 10 trips per household and 2.7 occupants per household (census 2013)
C34: Population in each buffer | D34: Walking | E34: Cycling
C35: 1 | D35: =0.4*$D$15*2*$D$31/4 ->  | E35: =0.4*$D$20*2*$D$31 -> 
C36: 2 | D36: =0.4*$D$15*2*$D$31/4 ->  | E36: =0.4*$D$20*2*$D$31 -> 
C37: 3 | D37: =0.8*$D$15*2*$D$31/4 ->  | E37: =0.8*$D$20*2*$D$31 -> 
D39: Walking | E39: Cycling
C40: Mode share | D40: =VLOOKUP($D$3,Lookups!$B$145:$D$161,3,FALSE) ->  | E40: =VLOOKUP($D$3,Lookups!$B$145:$D$161,2,FALSE) -> 
C42: Trips in each buffer | D42: Walking | E42: Cycling
C43: 1 | D43: =D35*$D$40*$D$32 ->  | E43: =E35*$E$40*$D$32 -> 
C44: 2 | D44: =D36*$D$40*$D$32 ->  | E44: =E36*$E$40*$D$32 -> 
C45: 3
C49: Estimated Trips | D49: =SUM(D43:D45) ->  | E49: =SUM(E43:E45) -> 
C51: Trip Length | D51: =D15 -> 0 | E51: =D20 -> 0
C53: Total Person-km per year (assumed weekdays only) | D53: =D49*D51*250 ->  | E53: =E49*E51*250 -> 
C55: Walking Benefit | D55: =walkingbenefit -> 3.224 | E55: =cyclingbenefit -> 1.736
C57: Total Benefit per year | D57: =D53*D55 ->  | E57: =E53*E55 -> 
C60: 40 year benefit range | D60: =D57*Lookups!$E$142 ->  | E60: =E57*Lookups!$E$142 -> 

Sheet Access - Congestion (hidden)
A1: Q1 | C1: Access - Congestion
C5: Road Category | D5: ='Benefit Inputs'!D33 -> 0
C7: Traffic Volume (veh/day) | D7: ='Benefit Inputs'!D35 -> 0
C9: Existing travel time (min) | D9: ='Benefit Inputs'!D37 -> 0
C11: Target percentage improvements in travel time | D11: ='Benefit Inputs'!D39 -> 0 | E11: ="Equivalent to "&ROUND(D9*D11,1)&" minutes reduction" -> Equivalent to 0 minutes reduction
F13: =IF($D$5="Corridor","Typical Cost","") -> 
C24: Travel time value | D24: =HLOOKUP(D5,Lookups!$C$60:$F$63,4,FALSE) -> 
C30: Travel Time Benefits
C31: Veh Hours DM | D31: =D9/60*D7 -> 0
C32: Veh Hours Opt | D32: =D9/60*(1-$D$11)*D7 -> 0
C33: Benefits per year | D33: =(D31-D32)*250*D24 -> 
C35: 40 year benefit | D35: =D33*Lookups!$E$142 -> 

Sheet Access - Public Transport (hidden)
A1: Q1 | C1: Characteristic of Activity | D1: Public Transport as Primary/Secondary Benefit Type
C5: Current PT Patronage (pax/day) | D5: ='Benefit Inputs'!C43 -> 0
C7: Target total PT Patronage (pax/day) | D7: ='Benefit Inputs'!C45 -> 0
C9: Existing travel time (min) | D9: ='Benefit Inputs'!C47 -> 0
C11: Target percentage improvements in travel time | D11: ='Benefit Inputs'!C49 -> 0
F13: =IF($D$5="Corridor","Typical Cost","") -> 
E17: Manual Input Required
C24: Road traffic reduction benefits | D24: =((0.7*(D7-D5)*2.06+0.3*(D7-D5)*1)*250)*tbhcupdatefactor -> 0
C25: PT user benefit | D25: =((0.7*(D7-D5)*11+0.3*(D7-D5)*7.33)*250)*ptuserbenefitsupdatefactor -> 0
D26: 0.15 | E26: 0.7 | F26: 0.15
C27: Travel Time Value | D27: 21.7 | E27: 4.7 | F27: 3.05
D28: =SUMPRODUCT(D26:F26,D27:F27)*Lookups!F25 -> 10.78385
C30: Travel Time Benefits
C31: Total Hours DM | D31: =D9/60 -> 0
C32: Total Hours Opt | D32: =D9/60*(1-$D$11) -> 0
C33: Benefits per year | D33: =((D31*D5-D32*D7)+0.5*(D32+D31)*(D7-D5))*250 -> 0
C35: 40 year benefit | D35: =(D24+D33+D25)*Lookups!$E$142 -> 0

Sheet Access - Resilience (hidden)
A1: Q1 | C1: Characteristic of Activity | D1: Resilience as Primary/Secondary Benefit Type
C3: What is the impacted traffic volume per day | D3: ='Benefit Inputs'!D53 -> 0
C5: Road Category | D5: ='Benefit Inputs'!D55 -> 0
C7: Estimated Number of Closure per Year | D7: ='Benefit Inputs'!D57 -> 0
C9: Average Period of Closure (or loss of service), in hours | D9: ='Benefit Inputs'!D59 -> 0
C11: Disruption / detour time during closure, in hours per vehicle | D11: ='Benefit Inputs'!D61 -> 0
C13: Estimated % of resilience problems removed by proposed activity | D13: ='Benefit Inputs'!D63 -> 0
C19: Benefit Calculation
C20: Total Veh risk hours per year | D20: =D7*D9*D3/24*D11 -> 0
C22: Travel Time Value | D22: =HLOOKUP($D$5,traveltimevalue,4,FALSE) -> 
C24: Total TT $ savings per year | D24: =D20*D22*D13 -> 
C27: 40 year benefit | D27: =$D$24*Lookups!$E$142 -> 

Sheet Lookups (hidden)
E1: Regions
B2: Primary Benefit Category | E2: Northland Region
B3: Safety | E3: Auckland Region
B4: Access - Active Modes | E4: Waikato Region
B5: Access - Congestion | E5: Bay of Plenty Region
B6: Access - Resilience | E6: Gisborne Region
B7: Access - Public Transport | E7: Hawke's Bay Region
E8: Taranaki Region
E9: Manawatu-Wanganui Region
E10: Wellington Region
E11: Tasman Region
E12: Nelson Region
B13: Benefit Range | C13: SSI Cost Range | E13: Marlborough Region
B14: Low | C14: Low | E14: West Coast Region
B15: Medium | C15: Medium | E15: Canterbury Region
B16: High | C16: High | E16: Otago Region
E17: Southland Region
B18: Benefit Assessment Approach
B19: User input
B20: Predefined range
B22: Project Type | E22: Crash Cost Uodate Factor | F22: 1.09
B23: Road renewals | E23: PT user benefits Update Factor | F23: 1.24
B24: Bridge renewals | E24: TBhC benefits update factor | F24: 1.24
B25: Road improvements | E25: Travel Time Update Factor | F25: 1.54
B26: Seal extensions | E26: Walking and Cycling Update Factor | F26: 1.24
B27: Intersections
B28: High productivity motor vehicles
B29: Freight services
B30: Public transport new services
B31: Public transport existing services
B32: Walking and cycling
B33: Travel behaviour
B34: Safety promotion
B35: Other
B37: SSI Intervention Type | E37: Speed Environment | G37: DSI Values
B38: Continuous 3 barriers (75%) | E38: < 80km/h | F38: urban | G38: 1100000
B39: Median barrier (65%) | E39: >= 80km/h | F39: rural | G39: 1400000
B40: Wide centreline (35%)
B41: Roadside barrier at high-risk locations (30%)
B42: Audio tactile pavement (ATP) marking (20%)
B43: Shoulder widening at high-risk locations (10%)
B44: Rural roundabout (60%)
B45: Urban roundabout (60%)
B46: Raised safety platforms (40%)
B47: Upgrade of signalised intersection (eg right turn filter bans) (25%)
B48: Rural Intersection Activated Warning Signs (RIAWS) (35%)
B49: Signalised intersection (from uncontrolled) (25%)
B50: Skid resistance at high-risk locations (20%)
B51: Mid-block raised pedestrian crossing (priority and signalised) (40%)
B52: Signs and markings delineation upgrade (5%)
B54: Road Category
B55: Urban Arterial
B56: Urban Other
B57: Rural Strategic
B58: Rural Other
B60: Travel Time Value | C60: =B55 -> Urban Arterial | D60: =B56 -> Urban Other | E60: =B57 -> Rural Strategic | F60: =B58 -> Rural Other
B61: Travel Time Value (2002$) | C61: 16.27 | D61: 16.23 | E61: 23.25 | F61: 22.72 | G61: /hour
B62: Travel Time Update Factor | C62: =F25 -> 1.54
B63: Travel Time Value | C63: =C61*$C$62 -> 25.0558 | D63: =D61*$C$62 -> 24.9942 | E63: =E61*$C$62 -> 35.805 | F63: =F61*$C$62 -> 34.9888
B66: Cycling Benefits (2008$) | C66: 1.4 | D66: /km | G66: Typical Walking Activities | H66: Typical cost (per km)
B67: Walking Benefits (2008$) | C67: 2.6 | D67: /km | G67: Segregated pathway – at grade (2.5 to 3m wide) | H67: 100000 | I67: 150000
B68: Walking and Cycling Update Factor | C68: =F26 -> 1.24 | G68: Segregated pathway - raised | H68: 250000 | I68: 1000000
B69: Cycling Benefits | C69: =C66*$C$68 -> 1.736 | D69: /km | G69: Other
B70: Walking Benefits | C70: =C67*$C$68 -> 3.224 | D70: /km | G70: Typical Cycling Activities | H70: Typical cost (per km)
G71: Cycling Boulevard | H71: 100000 | I71: 200000
G72: Segregated cycle path – at grade (3 to 4m wide) | H72: 200000 | I72: 300000
B73: Assumed Trip Mode Share | C73: Walking | D73: Cycling | G73: Segregated cycle path – raised | H73: 500000 | I73: 1000000
B74: Rural | C74: 0.005 | D74: 0.0025 | G74: Shared path | H74: 500000 | I74: 1000000
B75: Suburban | C75: 0.0125 | D75: 0.005 | G75: Segregated cycle path – at grade & widening needed | H75: 500000 | I75: 1000000
B76: Urban | C76: 0.035 | D76: 0.015
B77: Town Centre | C77: 0.15 | D77: 0.05
C79: Cycle
B80: Assumed Trip Mode Share | D80: Rural | E80: Suburban | F80: Urban | G80: Town Centre
B81: <400m | C81: 1.04 | D81: =VLOOKUP(D$80,$B$73:$D$77,3,FALSE)*$C81 -> 0.0026 | E81: =VLOOKUP(E$80,$B$73:$D$77,3,FALSE)*$C81 -> 0.0052 | F81: 0.0156 | G81: 0.052
B82: 400m-800m | C82: 0.54 | D82: =VLOOKUP(D$80,$B$73:$D$77,3,FALSE)*$C82 -> 0.00135 | E82: 0.0027 | F82: 0.0081 | G82: 0.027
B83: 800-1600m | C83: 0.21 | D83: 0.000525 | E83: 0.00105 | F83: 0.00315 | G83: 0.0105
C85: Walk | D85: Rural | E85: Suburban | F85: Urban | G85: Town Centre
B86: <100m | C86: 1.04 | D86: =VLOOKUP(D$80,$B$73:$D$77,2,FALSE)*$C86 -> 0.0052 | E86: =VLOOKUP(E$80,$B$73:$D$77,2,FALSE)*$C86 -> 0.013 | F86: 0.0364 | G86: 0.156
B87: 100-200m | C87: 0.54 | D87: =VLOOKUP(D$80,$B$73:$D$77,2,FALSE)*$C87 -> 0.0027 | E87: 0.00675 | F87: 0.0189 | G87: 0.081
B88: 200m-400m | C88: 0.21 | D88: 0.00105 | E88: 0.002625 | F88: 0.00735 | G88: 0.0315
B99: Link Parameters | C99: Free Speed | D99: Lane Capacity | E99: Ja Factor
B100: CBD/Shopping - lower capacity | C100: 40 | D100: 600 | E100: 1.8 | F100: Urban Other
B101: CBD/Shopping - higher capacity | C101: 45 | D101: 800 | E101: 1.6 | F101: Urban Other
B102: Local | C102: 45 | D102: 1000 | E102: 1.2 | F102: Urban Other
B103: Collector - lower capacity | C103: 48 | D103: 1100 | E103: 1.2 | F103: Urban Other
B104: Collector - higher capacity | C104: 48 | D104: 1200 | E104: 1 | F104: Urban Other
B105: Urban arterial - low speed | C105: 50 | D105: 1300 | E105: 1 | F105: Urban Arterial
B106: Urban arterial - high speed | C106: 50 | D106: 1400 | E106: 0.8 | F106: Urban Arterial
B107: Expressway | C107: 95 | D107: 1800 | E107: 0.8 | F107: Urban Arterial
B108: Motorway | C108: 100 | D108: 2000 | E108: 0.2 | F108: Urban Arterial
B109: On-ramp | C109: 7 | D109: 1800 | E109: 0.2 | F109: Urban Arterial
B110: Off-ramp | C110: 70 | D110: 1800 | E110: 0.2 | F110: Urban Arterial
B111: Rural - level | C111: 100 | D111: 1400 | E111: 1.6 | F111: Rural Strategic
B112: Rural - rolling | C112: 85 | D112: 1300 | E112: 1.6 | F112: Rural Strategic
B113: Rural - mountainous | C113: 75 | D113: 1000 | E113: 1.6 | F113: Rural Strategic
B114: Rural highway - townships | C114: 70 | D114: 1400 | E114: 1.6 | F114: Rural Strategic
B115: Rural highway - townships | C115: 60 | D115: 1000 | E115: 1.6 | F115: Rural Strategic
B116: Rural other | C116: 50 | D116: 850 | E116: 1.6 | F116: Rural Other
B119: Intersection Improvement Type
B120: Capacity Improvement - Adding Lane(s)
B121: Capacity Improvement - Traffic Signals Optimisation
B122: Change Intersection Type
B127: Corridor Improvement Type | D127: Road improvements | E127: Typical cost (per km)
B128: Adding Lane(s) | D128: Passing lanes | E128: $1M
B129: Upgrade Corridor Type (i.e. expressway to motorway) | D129: 2-lane highway | E129: $10M to $20M
D130: 4- lane highway | E130: $40M
D131: Adding lanes | E131: 10000000 | F131: per lane km
B136: Discounting
B137: Growth | C137: 0.02
B138: Discount Rate | C138: ='Key Questions & Results Summary'!$C$19 -> 0.04
B140: USPWF | C140: =(1-(1+$C$138)^-(40))/LN(1+$C$138) -> 20.18604181 | D140: =(1-(1+$C$138)^-(1))/LN(1+$C$138) -> 0.9806435266 | E140: =C140-D140 -> 19.20539828
B141: AGPWF | C141: =(LN(1+$C$138)^(-2)-40*(1+$C$138)^(-40)*(LN(1+$C$138))^(-1)-(1+$C$138)^(-40)*(LN(1+$C$138))^(-2)) -> 302.2504964 | D141: =(LN(1+$C$138)^(-2)-1*(1+$C$138)^(-1)*(LN(1+$C$138))^(-1)-(1+$C$138)^(-1)*(LN(1+$C$138))^(-2)) -> 0.4871167173 | E141: =C141-D141 -> 301.7633797
C142: =C140+$C$137*C141 -> 26.23105173 | E142: =E140+$C$137*E141 -> 25.24066587
C145: Cyclist | D145: Pedestrian
B146: Southland Region | C146: 0.0091 | D146: 0.1106
B147: Otago Region | C147: 0.0156 | D147: 0.1988
B148: Canterbury Region | C148: 0.03 | D148: 0.1658
B149: West Coast Region | C149: 0.0186 | D149: 0.1337
B150: Nelson Region | C150: 0.0157 | D150: 0.1844
B151: Marlborough Region | C151: 0.0157 | D151: 0.1844
B152: Tasman Region | C152: 0.0157 | D152: 0.1844
B153: Wellington Region | C153: 0.0102 | D153: 0.2293
B154: Manawatu-Wanganui Region | C154: 0.0149 | D154: 0.1257
B155: Taranaki Region | C155: 0.0131 | D155: 0.1411
B156: Hawke's Bay Region | C156: 0.0155 | D156: 0.129
B157: Gisborne Region | C157: 0.0179 | D157: 0.2019
B158: Bay of Plenty Region | C158: 0.0154 | D158: 0.1293
B159: Waikato Region | C159: 0.0111 | D159: 0.1295
B160: Auckland Region | C160: 0.0037 | D160: 0.1722
B161: Northland Region | C161: 0.004 | D161: 0.1423

Sheet Total dwellings SA2 (hidden)
B1: =DotStatQuery(#REF!) -> 
A2: Region | B2: Total - New Zealand by Regional Council/SA2 | C2: .. | D2: .. | E2: Total | F2: SA2 | G2: LAND_AREA_SQ_KM | H2: Population Density | I2: Calc 1 | J2: Calc 2 | K2: Calc 3 | M2: ='Benefit Inputs'!C19 -> 0 | P2: SA2 | Q2: Population Density
C3: .. | D3: .. | E3: 198291 | F3: =TRIM(B3) ->  | H3: =E3/G3 ->  | I3: =ROWS($A$3:A3) -> 1 | J3: =IF(A3=$M$2,I4,"") ->  | K3: =IFERROR(SMALL($J$3:$J$4612,I3)-1,"") ->  | P3: =IFERROR(INDEX($F$3:$H$4612,$K3,COLUMNS($P$3:P3)),"") ->  | Q3: =IFERROR(VLOOKUP(P3,$F:$H,3,FALSE),"") -> 
C4: .. | D4: .. | E4: 127812 | I4: =ROWS($A$3:A4) -> 2 | K4: =IFERROR(SMALL($J$3:$J$4612,I4)-1,"") ->  | P4: =IFERROR(INDEX($F$3:$H$4612,$K4,COLUMNS($P$3:P4)),"") ->  | Q4: =IFERROR(VLOOKUP(P4,$F:$H,3,FALSE),"") -> 
C5: .. | D5: .. | E5: 18684 | I5: =ROWS($A$3:A5) -> 3 | P5: =IFERROR(INDEX($F$3:$H$4612,$K5,COLUMNS($P$3:P5)),"") -> 
C6: .. | D6: .. | E6: 66990 | I6: =ROWS($A$3:A6) -> 4 | P6: =IFERROR(INDEX($F$3:$H$4612,$K6,COLUMNS($P$3:P6)),"") -> 
C7: .. | D7: .. | E7: 50004 | I7: =ROWS($A$3:A7) -> 5 | P7: =IFERROR(INDEX($F$3:$H$4612,$K7,COLUMNS($P$3:P7)),"") -> 
C8: .. | D8: .. | E8: 103317 | I8: =ROWS($A$3:A8) -> 6 | P8: =IFERROR(INDEX($F$3:$H$4612,$K8,COLUMNS($P$3:P8)),"") -> 
C9: .. | D9: .. | E9: 203019 | I9: =ROWS($A$3:A9) -> 7 | P9: =IFERROR(INDEX($F$3:$H$4612,$K9,COLUMNS($P$3:P9)),"") -> 
C10: .. | D10: .. | E10: 23733 | I10: =ROWS($A$3:A10) -> 8 | P10: =IFERROR(INDEX($F$3:$H$4612,$K10,COLUMNS($P$3:P10)),"") -> 
C11: .. | D11: .. | E11: 21534 | I11: =ROWS($A$3:A11) -> 9 | P11: =IFERROR(INDEX($F$3:$H$4612,$K11,COLUMNS($P$3:P11)),"") -> 
C12: .. | D12: .. | E12: 22719 | I12: =ROWS($A$3:A12) -> 10 | P12: =IFERROR(INDEX($F$3:$H$4612,$K12,COLUMNS($P$3:P12)),"") -> 
C13: .. | D13: .. | E13: 17547 | I13: =ROWS($A$3:A13) -> 11 | P13: =IFERROR(INDEX($F$3:$H$4612,$K13,COLUMNS($P$3:P13)),"") -> 
C14: .. | D14: .. | E14: 256158 | I14: =ROWS($A$3:A14) -> 12 | P14: =IFERROR(INDEX($F$3:$H$4612,$K14,COLUMNS($P$3:P14)),"") -> 
C15: .. | D15: .. | E15: 103614 | I15: =ROWS($A$3:A15) -> 13 | P15: =IFERROR(INDEX($F$3:$H$4612,$K15,COLUMNS($P$3:P15)),"") -> 
C16: .. | D16: .. | E16: 44691 | I16: =ROWS($A$3:A16) -> 14 | P16: =IFERROR(INDEX($F$3:$H$4612,$K16,COLUMNS($P$3:P16)),"") -> 
A17: Area Outside Region | B17: Abbey Caves-Glenbervie | C17: .. | D17: .. | E17: 501 | F17: Abbey Caves-Glenbervie | G17: 32.11865017 | H17: 15.59841392 | I17: =ROWS($A$3:A17) -> 15 | P17: =IFERROR(INDEX($F$3:$H$4612,$K17,COLUMNS($P$3:P17)),"") -> 
A18: Area Outside Region | B18: Abbotsford | C18: .. | D18: .. | E18: 1128 | F18: Abbotsford | G18: 2.3645374 | H18: 477.0489145 | I18: =ROWS($A$3:A18) -> 16 | P18: =IFERROR(INDEX($F$3:$H$4612,$K18,COLUMNS($P$3:P18)),"") -> 
A19: Area Outside Region | B19: Acacia Bay | C19: .. | D19: .. | E19: 1008 | F19: Acacia Bay | G19: 7.15005011 | H19: 140.9780329 | I19: =ROWS($A$3:A19) -> 17 | P19: =IFERROR(INDEX($F$3:$H$4612,$K19,COLUMNS($P$3:P19)),"") -> 
A20: Area Outside Region | B20: Addington East | C20: .. | D20: .. | E20: 1326 | F20: Addington East | G20: 0.56822363 | H20: 2333.588274 | I20: =ROWS($A$3:A20) -> 18 | P20: =IFERROR(INDEX($F$3:$H$4612,$K20,COLUMNS($P$3:P20)),"") -> 
A21: Area Outside Region | B21: Addington North | C21: .. | D21: .. | E21: 3 | F21: Addington North | G21: 0.43431408 | H21: 6.907443572 | I21: =ROWS($A$3:A21) -> 19 | P21: =IFERROR(INDEX($F$3:$H$4612,$K21,COLUMNS($P$3:P21)),"") -> 
A22: Area Outside Region | B22: Addington West | C22: .. | D22: .. | E22: 861 | F22: Addington West | G22: 0.55789684 | H22: 1543.296069 | I22: =ROWS($A$3:A22) -> 20 | P22: =IFERROR(INDEX($F$3:$H$4612,$K22,COLUMNS($P$3:P22)),"") -> 
A23: Area Outside Region | B23: Ahipara | C23: .. | D23: .. | E23: 570 | F23: Ahipara | G23: 4.5292775 | H23: 125.8478863 | I23: =ROWS($A$3:A23) -> 21 | P23: =IFERROR(INDEX($F$3:$H$4612,$K23,COLUMNS($P$3:P23)),"") -> 
A24: Area Outside Region | B24: Ahuriri | C24: .. | D24: .. | E24: 615 | F24: Ahuriri | G24: 0.9785533 | H24: 628.4787962 | I24: =ROWS($A$3:A24) -> 22 | P24: =IFERROR(INDEX($F$3:$H$4612,$K24,COLUMNS($P$3:P24)),"") -> 
A25: Area Outside Region | B25: Aidanfield | C25: .. | D25: .. | E25: 1314 | F25: Aidanfield | G25: 1.68401322 | H25: 780.2789102 | I25: =ROWS($A$3:A25) -> 23 | P25: =IFERROR(INDEX($F$3:$H$4612,$K25,COLUMNS($P$3:P25)),"") -> 
A26: Area Outside Region | B26: Aka Aka | C26: .. | D26: .. | E26: 1122 | F26: Aka Aka | G26: 186.8663284 | H26: 6.004291996 | I26: =ROWS($A$3:A26) -> 24 | P26: =IFERROR(INDEX($F$3:$H$4612,$K26,COLUMNS($P$3:P26)),"") -> 
A27: Area Outside Region | B27: Akaroa | C27: .. | D27: .. | E27: 978 | F27: Akaroa | G27: 2.03197111 | H27: 481.3060556 | I27: =ROWS($A$3:A27) -> 25 | P27: =IFERROR(INDEX($F$3:$H$4612,$K27,COLUMNS($P$3:P27)),"") -> 
A28: Area Outside Region | B28: Akaroa Harbour | C28: .. | D28: .. | E28: 933 | F28: Akaroa Harbour | G28: 162.2268661 | H28: 5.751205225 | I28: =ROWS($A$3:A28) -> 26 | P28: =IFERROR(INDEX($F$3:$H$4612,$K28,COLUMNS($P$3:P28)),"") -> 
A29: Area Outside Region | B29: Akatarawa | C29: .. | D29: .. | E29: 270 | F29: Akatarawa | G29: 334.1444632 | H29: 0.808033739 | I29: =ROWS($A$3:A29) -> 27 | P29: =IFERROR(INDEX($F$3:$H$4612,$K29,COLUMNS($P$3:P29)),"") -> 
A30: Area Outside Region | B30: Akina Park | C30: .. | D30: .. | E30: 972 | F30: Akina Park | G30: 1.02516338 | H30: 948.1415538 | I30: =ROWS($A$3:A30) -> 28 | P30: =IFERROR(INDEX($F$3:$H$4612,$K30,COLUMNS($P$3:P30)),"") -> 
A31: Area Outside Region | B31: Akoranga | C31: .. | D31: .. | E31: 480 | F31: Akoranga | G31: 1.16291081 | H31: 412.7573636 | I31: =ROWS($A$3:A31) -> 29 | P31: =IFERROR(INDEX($F$3:$H$4612,$K31,COLUMNS($P$3:P31)),"") -> 
A32: Area Outside Region | B32: Albany Central | C32: .. | D32: .. | E32: 270 | F32: Albany Central | G32: 3.21005397 | H32: 84.11073537 | I32: =ROWS($A$3:A32) -> 30 | P32: =IFERROR(INDEX($F$3:$H$4612,$K32,COLUMNS($P$3:P32)),"") -> 
A33: Area Outside Region | B33: Albany Heights | C33: .. | D33: .. | E33: 1224 | F33: Albany Heights | G33: 3.10401049 | H33: 394.3285643 | I33: =ROWS($A$3:A33) -> 31 | P33: =IFERROR(INDEX($F$3:$H$4612,$K33,COLUMNS($P$3:P33)),"") -> 
A34: Area Outside Region | B34: Albany South | C34: .. | D34: .. | E34: 1191 | F34: Albany South | G34: 1.48565737 | H34: 801.6653261 | I34: =ROWS($A$3:A34) -> 32 | P34: =IFERROR(INDEX($F$3:$H$4612,$K34,COLUMNS($P$3:P34)),"") -> 
A35: Area Outside Region | B35: Albany West | C35: .. | D35: .. | E35: 972 | F35: Albany West | G35: 2.05684939 | H35: 472.5674154 | I35: =ROWS($A$3:A35) -> 33 | P35: =IFERROR(INDEX($F$3:$H$4612,$K35,COLUMNS($P$3:P35)),"") -> 
A36: Area Outside Region | B36: Albert Town | C36: .. | D36: .. | E36: 933 | F36: Albert Town | G36: 4.95955478 | H36: 188.1217249 | I36: =ROWS($A$3:A36) -> 34 | P36: =IFERROR(INDEX($F$3:$H$4612,$K36,COLUMNS($P$3:P36)),"") -> 
A37: Area Outside Region | B37: Aldinga | C37: .. | D37: .. | E37: 1290 | F37: Aldinga | G37: 1.11110705 | H37: 1161.004243 | I37: =ROWS($A$3:A37) -> 35 | P37: =IFERROR(INDEX($F$3:$H$4612,$K37,COLUMNS($P$3:P37)),"") -> 
A38: Area Outside Region | B38: Alexandra North | C38: .. | D38: .. | E38: 1341 | F38: Alexandra North | G38: 4.60319826 | H38: 291.3191925 | I38: =ROWS($A$3:A38) -> 36 | P38: =IFERROR(INDEX($F$3:$H$4612,$K38,COLUMNS($P$3:P38)),"") -> 
A39: Area Outside Region | B39: Alexandra South | C39: .. | D39: .. | E39: 1290 | F39: Alexandra South | G39: 5.15697103 | H39: 250.1468386 | I39: =ROWS($A$3:A39) -> 37 | P39: =IFERROR(INDEX($F$3:$H$4612,$K39,COLUMNS($P$3:P39)),"") -> 
A40: Area Outside Region | B40: Alfriston | C40: .. | D40: .. | E40: 1128 | F40: Alfriston | G40: 1.95412196 | H40: 577.2413509 | I40: =ROWS($A$3:A40) -> 38 | P40: =IFERROR(INDEX($F$3:$H$4612,$K40,COLUMNS($P$3:P40)),"") -> 
A41: Area Outside Region | B41: Algies Bay-Scotts Landing | C41: .. | D41: .. | E41: 786 | F41: Algies Bay-Scotts Landing | G41: 15.36828354 | H41: 51.14429324 | I41: =ROWS($A$3:A41) -> 39 | P41: =IFERROR(INDEX($F$3:$H$4612,$K41,COLUMNS($P$3:P41)),"") -> 
A42: Area Outside Region | B42: Alicetown-Melling | C42: .. | D42: .. | E42: 1158 | F42: Alicetown-Melling | G42: 1.25541859 | H42: 922.4015075 | I42: =ROWS($A$3:A42) -> 40 | P42: =IFERROR(INDEX($F$3:$H$4612,$K42,COLUMNS($P$3:P42)),"") -> 
A43: Area Outside Region | B43: Allandale | C43: .. | D43: .. | E43: 1122 | F43: Allandale | G43: 1.52555092 | H43: 735.472009 | I43: =ROWS($A$3:A43) -> 41 | P43: =IFERROR(INDEX($F$3:$H$4612,$K43,COLUMNS($P$3:P43)),"") -> 
A44: Area Outside Region | B44: Allenton East | C44: .. | D44: .. | E44: 906 | F44: Allenton East | G44: 1.23583513 | H44: 733.1074979 | I44: =ROWS($A$3:A44) -> 42 | P44: =IFERROR(INDEX($F$3:$H$4612,$K44,COLUMNS($P$3:P44)),"") -> 
A45: Area Outside Region | B45: Allenton North | C45: .. | D45: .. | E45: 1092 | F45: Allenton North | G45: 2.09646454 | H45: 520.8769236 | I45: =ROWS($A$3:A45) -> 43 | P45: =IFERROR(INDEX($F$3:$H$4612,$K45,COLUMNS($P$3:P45)),"") -> 
A46: Area Outside Region | B46: Allenton South | C46: .. | D46: .. | E46: 876 | F46: Allenton South | G46: 2.92674293 | H46: 299.3088293 | I46: =ROWS($A$3:A46) -> 44 | P46: =IFERROR(INDEX($F$3:$H$4612,$K46,COLUMNS($P$3:P46)),"") -> 
A47: Area Outside Region | B47: Amberley | C47: .. | D47: .. | E47: 915 | F47: Amberley | G47: 3.62839288 | H47: 252.1777631 | I47: =ROWS($A$3:A47) -> 45 | P47: =IFERROR(INDEX($F$3:$H$4612,$K47,COLUMNS($P$3:P47)),"") -> 
A48: Area Outside Region | B48: Amuri | C48: .. | D48: .. | E48: 1152 | F48: Amuri | G48: 1835.565978 | H48: 0.6275993419 | I48: =ROWS($A$3:A48) -> 46 | P48: =IFERROR(INDEX($F$3:$H$4612,$K48,COLUMNS($P$3:P48)),"") -> 
A49: Area Outside Region | B49: Andersons Bay | C49: .. | D49: .. | E49: 939 | F49: Andersons Bay | G49: 1.25594294 | H49: 747.6454305 | I49: =ROWS($A$3:A49) -> 47 | P49: =IFERROR(INDEX($F$3:$H$4612,$K49,COLUMNS($P$3:P49)),"") -> 
A50: Area Outside Region | B50: Aniseed Valley | C50: .. | D50: .. | E50: 153 | F50: Aniseed Valley | G50: 57.24760532 | H50: 2.672600874 | I50: =ROWS($A$3:A50) -> 48 | P50: =IFERROR(INDEX($F$3:$H$4612,$K50,COLUMNS($P$3:P50)),"") -> 
A51: Area Outside Region | B51: Anselmi Ridge | C51: .. | D51: .. | E51: 930 | F51: Anselmi Ridge | G51: 7.53297597 | H51: 123.4571839 | I51: =ROWS($A$3:A51) -> 49 | P51: =IFERROR(INDEX($F$3:$H$4612,$K51,COLUMNS($P$3:P51)),"") -> 
A52: Area Outside Region | B52: Antipodes Islands | C52: .. | D52: .. | E52: 3 | F52: Antipodes Islands | G52: 0 | I52: =ROWS($A$3:A52) -> 50 | P52: =IFERROR(INDEX($F$3:$H$4612,$K52,COLUMNS($P$3:P52)),"") -> 
A53: Area Outside Region | B53: Antipodes Islands | C53: .. | D53: .. | E53: 3 | F53: Antipodes Islands | G53: 0 | I53: =ROWS($A$3:A53) -> 51 | P53: =IFERROR(INDEX($F$3:$H$4612,$K53,COLUMNS($P$3:P53)),"") -> 
A54: Area Outside Region | B54: Anzac Avenue | C54: .. | D54: .. | E54: 1701 | F54: Anzac Avenue | G54: 0.10247702 | H54: 16598.84333 | I54: =ROWS($A$3:A54) -> 52 | P54: =IFERROR(INDEX($F$3:$H$4612,$K54,COLUMNS($P$3:P54)),"") -> 
A55: Area Outside Region | B55: Aokautere | C55: .. | D55: .. | E55: 249 | F55: Aokautere | G55: 7.14236352 | H55: 34.86240924 | I55: =ROWS($A$3:A55) -> 53 | P55: =IFERROR(INDEX($F$3:$H$4612,$K55,COLUMNS($P$3:P55)),"") -> 
A56: Area Outside Region | B56: Aokautere Rural | C56: .. | D56: .. | E56: 264 | F56: Aokautere Rural | G56: 83.31302305 | H56: 3.168772304 | I56: =ROWS($A$3:A56) -> 54 | P56: =IFERROR(INDEX($F$3:$H$4612,$K56,COLUMNS($P$3:P56)),"") -> 
A57: Area Outside Region | B57: Aongatete | C57: .. | D57: .. | E57: 1428 | F57: Aongatete | G57: 164.8029575 | H57: 8.664893043 | I57: =ROWS($A$3:A57) -> 55 | P57: =IFERROR(INDEX($F$3:$H$4612,$K57,COLUMNS($P$3:P57)),"") -> 
A58: Area Outside Region | B58: Aorangi Forest | C58: .. | D58: .. | E58: 1143 | F58: Aorangi Forest | G58: 1579.079806 | H58: 0.7238392865 | I58: =ROWS($A$3:A58) -> 56 | P58: =IFERROR(INDEX($F$3:$H$4612,$K58,COLUMNS($P$3:P58)),"") -> 
A59: Area Outside Region | B59: Aorere Central | C59: .. | D59: .. | E59: 474 | F59: Aorere Central | G59: 0.62009558 | H59: 764.3982884 | I59: =ROWS($A$3:A59) -> 57 | P59: =IFERROR(INDEX($F$3:$H$4612,$K59,COLUMNS($P$3:P59)),"") -> 
A60: Area Outside Region | B60: Aorere North | C60: .. | D60: .. | E60: 375 | F60: Aorere North | G60: 0.33000405 | H60: 1136.34969 | I60: =ROWS($A$3:A60) -> 58 | P60: =IFERROR(INDEX($F$3:$H$4612,$K60,COLUMNS($P$3:P60)),"") -> 
A61: Area Outside Region | B61: Aorere South | C61: .. | D61: .. | E61: 1215 | F61: Aorere South | G61: 1.23946499 | H61: 980.2616531 | I61: =ROWS($A$3:A61) -> 59 | P61: =IFERROR(INDEX($F$3:$H$4612,$K61,COLUMNS($P$3:P61)),"") -> 
A62: Area Outside Region | B62: Aotea | C62: .. | D62: .. | E62: 1143 | F62: Aotea | G62: 2.67877685 | H62: 426.6872771 | I62: =ROWS($A$3:A62) -> 60 | P62: =IFERROR(INDEX($F$3:$H$4612,$K62,COLUMNS($P$3:P62)),"") -> 
A63: Area Outside Region | B63: Appleby | C63: .. | D63: .. | E63: 282 | F63: Appleby | G63: 20.06518761 | H63: 14.05419204 | I63: =ROWS($A$3:A63) -> 61 | P63: =IFERROR(INDEX($F$3:$H$4612,$K63,COLUMNS($P$3:P63)),"") -> 
A64: Area Outside Region | B64: Arahiwi | C64: .. | D64: .. | E64: 63 | F64: Arahiwi | G64: 62.85600683 | H64: 1.002290842 | I64: =ROWS($A$3:A64) -> 62 | P64: =IFERROR(INDEX($F$3:$H$4612,$K64,COLUMNS($P$3:P64)),"") -> 
A65: Area Outside Region | B65: Arahura-Kumara | C65: .. | D65: .. | E65: 675 | F65: Arahura-Kumara | G65: 262.2688003 | H65: 2.573695381 | I65: =ROWS($A$3:A65) -> 63 | P65: =IFERROR(INDEX($F$3:$H$4612,$K65,COLUMNS($P$3:P65)),"") -> 
A66: Area Outside Region | B66: Arakura | C66: .. | D66: .. | E66: 951 | F66: Arakura | G66: 1.9607986 | H66: 485.0064662 | I66: =ROWS($A$3:A66) -> 64 | P66: =IFERROR(INDEX($F$3:$H$4612,$K66,COLUMNS($P$3:P66)),"") -> 
A67: Area Outside Region | B67: Aranui | C67: .. | D67: .. | E67: 1503 | F67: =TRIM(B67) -> Aranui | G67: 1.41641589 | H67: =E67/G67 -> 1061.129016 | I67: =ROWS($A$3:A67) -> 65 | J67: =IF(A67=$M$2,I68,"") ->  | P67: =IFERROR(INDEX($F$3:$H$4612,$K67,COLUMNS($P$3:P67)),"") -> 
A68: Area Outside Region | B68: Ararimu | C68: .. | D68: .. | E68: 732 | F68: Ararimu | G68: 91.30824094 | H68: 8.01680103 | I68: =ROWS($A$3:A68) -> 66 | K68: =IFERROR(SMALL($J$3:$J$4612,I68)-1,"") ->  | P68: =IFERROR(INDEX($F$3:$H$4612,$K68,COLUMNS($P$3:P68)),"") ->  | Q68: =IFERROR(VLOOKUP(P68,$F:$H,3,FALSE),"") -> 
A69: Area Outside Region | B69: Arataki North | C69: .. | D69: .. | E69: 1380 | F69: Arataki North | G69: 2.16080909 | H69: 638.6496643 | I69: =ROWS($A$3:A69) -> 67 | P69: =IFERROR(INDEX($F$3:$H$4612,$K69,COLUMNS($P$3:P69)),"") -> 
A70: Area Outside Region | B70: Arataki South | C70: .. | D70: .. | E70: 1146 | F70: Arataki South | G70: 0.98787025 | H70: 1160.071376 | I70: =ROWS($A$3:A70) -> 68 | P70: =IFERROR(INDEX($F$3:$H$4612,$K70,COLUMNS($P$3:P70)),"") -> 
A71: Area Outside Region | B71: Ardmore | C71: .. | D71: .. | E71: 474 | F71: Ardmore | G71: 44.26853484 | H71: 10.70737944 | I71: =ROWS($A$3:A71) -> 69 | P71: =IFERROR(INDEX($F$3:$H$4612,$K71,COLUMNS($P$3:P71)),"") -> 
A72: Area Outside Region | B72: Aria | C72: .. | D72: .. | E72: 561 | F72: Aria | G72: 531.7868274 | H72: 1.054933991 | I72: =ROWS($A$3:A72) -> 70 | P72: =IFERROR(INDEX($F$3:$H$4612,$K72,COLUMNS($P$3:P72)),"") -> 
A73: Area Outside Region | B73: Army Bay | C73: .. | D73: .. | E73: 609 | F73: Army Bay | G73: 6.21560447 | H73: 97.97920748 | I73: =ROWS($A$3:A73) -> 71 | P73: =IFERROR(INDEX($F$3:$H$4612,$K73,COLUMNS($P$3:P73)),"") -> 
A74: Area Outside Region | B74: Aro Valley | C74: .. | D74: .. | E74: 1584 | F74: Aro Valley | G74: 1.24643552 | H74: 1270.823861 | I74: =ROWS($A$3:A74) -> 72 | P74: =IFERROR(INDEX($F$3:$H$4612,$K74,COLUMNS($P$3:P74)),"") -> 
A75: Area Outside Region | B75: Arrowtown | C75: .. | D75: .. | E75: 1422 | F75: Arrowtown | G75: 2.361622 | H75: 602.1285371 | I75: =ROWS($A$3:A75) -> 73 | P75: =IFERROR(INDEX($F$3:$H$4612,$K75,COLUMNS($P$3:P75)),"") -> 
A76: Area Outside Region | B76: Arthur Street | C76: .. | D76: .. | E76: 669 | F76: Arthur Street | G76: 0.71722274 | H76: 932.7646248 | I76: =ROWS($A$3:A76) -> 74 | P76: =IFERROR(INDEX($F$3:$H$4612,$K76,COLUMNS($P$3:P76)),"") -> 
A77: Area Outside Region | B77: Arthurs Point | C77: .. | D77: .. | E77: 456 | F77: Arthurs Point | G77: 5.52125467 | H77: 82.58992335 | I77: =ROWS($A$3:A77) -> 75 | P77: =IFERROR(INDEX($F$3:$H$4612,$K77,COLUMNS($P$3:P77)),"") -> 
A78: Area Outside Region | B78: Arundel | C78: .. | D78: .. | E78: 609 | F78: Arundel | G78: 629.0215518 | H78: 0.9681703246 | I78: =ROWS($A$3:A78) -> 76 | P78: =IFERROR(INDEX($F$3:$H$4612,$K78,COLUMNS($P$3:P78)),"") -> 
A79: Area Outside Region | B79: Ascot Park | C79: .. | D79: .. | E79: 831 | F79: Ascot Park | G79: 1.119596 | H79: 742.2320194 | I79: =ROWS($A$3:A79) -> 77 | P79: =IFERROR(INDEX($F$3:$H$4612,$K79,COLUMNS($P$3:P79)),"") -> 
A80: Area Outside Region | B80: Ashburton Central | C80: .. | D80: .. | E80: 78 | F80: Ashburton Central | G80: 2.56294965 | H80: 30.4336841 | I80: =ROWS($A$3:A80) -> 78 | P80: =IFERROR(INDEX($F$3:$H$4612,$K80,COLUMNS($P$3:P80)),"") -> 
A81: Area Outside Region | B81: Ashburton East | C81: .. | D81: .. | E81: 822 | F81: Ashburton East | G81: 0.77867241 | H81: 1055.642899 | I81: =ROWS($A$3:A81) -> 79 | P81: =IFERROR(INDEX($F$3:$H$4612,$K81,COLUMNS($P$3:P81)),"") -> 
A82: Area Outside Region | B82: Ashburton Forks | C82: .. | D82: .. | E82: 1017 | F82: Ashburton Forks | G82: 858.450443 | H82: 1.184692731 | I82: =ROWS($A$3:A82) -> 80 | P82: =IFERROR(INDEX($F$3:$H$4612,$K82,COLUMNS($P$3:P82)),"") -> 
A83: Area Outside Region | B83: Ashburton Lakes | C83: .. | D83: .. | E83: 261 | F83: Ashburton Lakes | G83: 2995.114033 | H83: 0.08714192418 | I83: =ROWS($A$3:A83) -> 81 | P83: =IFERROR(INDEX($F$3:$H$4612,$K83,COLUMNS($P$3:P83)),"") -> 
A84: Area Outside Region | B84: Ashburton North | C84: .. | D84: .. | E84: 417 | F84: Ashburton North | G84: 20.64835871 | H84: 20.19530975 | I84: =ROWS($A$3:A84) -> 82 | P84: =IFERROR(INDEX($F$3:$H$4612,$K84,COLUMNS($P$3:P84)),"") -> 
A85: Area Outside Region | B85: Ashburton West | C85: .. | D85: .. | E85: 480 | F85: Ashburton West | G85: 0.45251256 | H85: 1060.744038 | I85: =ROWS($A$3:A85) -> 83 | P85: =IFERROR(INDEX($F$3:$H$4612,$K85,COLUMNS($P$3:P85)),"") -> 
A86: Area Outside Region | B86: Ashgrove | C86: .. | D86: .. | E86: 609 | F86: Ashgrove | G86: 0.66739414 | H86: 912.5042662 | I86: =ROWS($A$3:A86) -> 84 | P86: =IFERROR(INDEX($F$3:$H$4612,$K86,COLUMNS($P$3:P86)),"") -> 
A87: Area Outside Region | B87: Ashhurst | C87: .. | D87: .. | E87: 1113 | F87: Ashhurst | G87: 4.23333772 | H87: 262.9131134 | I87: =ROWS($A$3:A87) -> 85 | P87: =IFERROR(INDEX($F$3:$H$4612,$K87,COLUMNS($P$3:P87)),"") -> 
A88: Area Outside Region | B88: Ashley Forest | C88: .. | D88: .. | E88: 273 | F88: Ashley Forest | G88: 340.5738764 | H88: 0.8015881984 | I88: =ROWS($A$3:A88) -> 86 | P88: =IFERROR(INDEX($F$3:$H$4612,$K88,COLUMNS($P$3:P88)),"") -> 
A89: Area Outside Region | B89: Ashley Gorge | C89: .. | D89: .. | E89: 495 | F89: Ashley Gorge | G89: 336.7059189 | H89: 1.470125627 | I89: =ROWS($A$3:A89) -> 87 | P89: =IFERROR(INDEX($F$3:$H$4612,$K89,COLUMNS($P$3:P89)),"") -> 
A90: Area Outside Region | B90: Ashley-Sefton | C90: .. | D90: .. | E90: 828 | F90: Ashley-Sefton | G90: 86.90622515 | H90: 9.527510815 | I90: =ROWS($A$3:A90) -> 88 | P90: =IFERROR(INDEX($F$3:$H$4612,$K90,COLUMNS($P$3:P90)),"") -> 
A91: Area Outside Region | B91: Atawhai | C91: .. | D91: .. | E91: 1215 | F91: Atawhai | G91: 4.53225726 | H91: 268.0783394 | I91: =ROWS($A$3:A91) -> 89 | P91: =IFERROR(INDEX($F$3:$H$4612,$K91,COLUMNS($P$3:P91)),"") -> 
A92: Area Outside Region | B92: Athenree | C92: .. | D92: .. | E92: 426 | F92: Athenree | G92: 1.26291361 | H92: 337.3152341 | I92: =ROWS($A$3:A92) -> 90 | P92: =IFERROR(INDEX($F$3:$H$4612,$K92,COLUMNS($P$3:P92)),"") -> 
A93: Area Outside Region | B93: Auckland Airport | C93: .. | D93: .. | E93: 183 | F93: Auckland Airport | G93: 23.07816449 | H93: 7.929573432 | I93: =ROWS($A$3:A93) -> 91 | P93: =IFERROR(INDEX($F$3:$H$4612,$K93,COLUMNS($P$3:P93)),"") -> 
A94: Area Outside Region | B94: Auckland Islands | C94: .. | D94: .. | E94: 6 | F94: Auckland Islands | G94: 0 | I94: =ROWS($A$3:A94) -> 92 | P94: =IFERROR(INDEX($F$3:$H$4612,$K94,COLUMNS($P$3:P94)),"") -> 
A95: Area Outside Region | B95: Auckland Islands | C95: .. | D95: .. | E95: 6 | F95: Auckland Islands | G95: 0 | I95: =ROWS($A$3:A95) -> 93 | P95: =IFERROR(INDEX($F$3:$H$4612,$K95,COLUMNS($P$3:P95)),"") -> 
A96: Area Outside Region | B96: Auckland-University | C96: .. | D96: .. | E96: 75 | F96: Auckland-University | G96: 0.34902817 | H96: 214.882369 | I96: =ROWS($A$3:A96) -> 94 | P96: =IFERROR(INDEX($F$3:$H$4612,$K96,COLUMNS($P$3:P96)),"") -> 
A97: Area Outside Region | B97: Aurora | C97: .. | D97: .. | E97: 528 | F97: Aurora | G97: 0.65289648 | H97: 808.7040077 | I97: =ROWS($A$3:A97) -> 95 | P97: =IFERROR(INDEX($F$3:$H$4612,$K97,COLUMNS($P$3:P97)),"") -> 
A98: Area Outside Region | B98: Avalon East | C98: .. | D98: .. | E98: 999 | F98: Avalon East | G98: 0.81383753 | H98: 1227.517733 | I98: =ROWS($A$3:A98) -> 96 | P98: =IFERROR(INDEX($F$3:$H$4612,$K98,COLUMNS($P$3:P98)),"") -> 
A99: Area Outside Region | B99: Avalon West | C99: .. | D99: .. | E99: 1083 | F99: Avalon West | G99: 1.21086039 | H99: 894.405341 | I99: =ROWS($A$3:A99) -> 97 | P99: =IFERROR(INDEX($F$3:$H$4612,$K99,COLUMNS($P$3:P99)),"") -> 
A100: Area Outside Region | B100: Avenal | C100: .. | D100: .. | E100: 600 | F100: Avenal | G100: 1.42781023 | H100: 420.2239117 | I100: =ROWS($A$3:A100) -> 98 | P100: =IFERROR(INDEX($F$3:$H$4612,$K100,COLUMNS($P$3:P100)),"") -> 
A101: Area Outside Region | B101: Aviemore | C101: .. | D101: .. | E101: 1089 | F101: Aviemore | G101: 3483.875619 | H101: 0.312582916 | I101: =ROWS($A$3:A101) -> 99 | P101: =IFERROR(INDEX($F$3:$H$4612,$K101,COLUMNS($P$3:P101)),"") -> 
A102: Area Outside Region | B102: Avondale (Christchurch City) | C102: .. | D102: .. | E102: 966 | F102: Avondale (Christchurch City) | G102: 1.26092385 | H102: 766.1049476 | I102: =ROWS($A$3:A102) -> 100 | P102: =IFERROR(INDEX($F$3:$H$4612,$K102,COLUMNS($P$3:P102)),"") -> 
A103: Area Outside Region | B103: Avondale Central (Auckland) | C103: .. | D103: .. | E103: 1104 | F103: Avondale Central (Auckland) | G103: 1.11535228 | H103: 989.8217987 | I103: =ROWS($A$3:A103) -> 101 | P103: =IFERROR(INDEX($F$3:$H$4612,$K103,COLUMNS($P$3:P103)),"") -> 
A104: Area Outside Region | B104: Avondale North (Auckland) | C104: .. | D104: .. | E104: 1533 | F104: Avondale North (Auckland) | G104: 1.23589539 | H104: 1240.396244 | I104: =ROWS($A$3:A104) -> 102 | P104: =IFERROR(INDEX($F$3:$H$4612,$K104,COLUMNS($P$3:P104)),"") -> 
A105: Area Outside Region | B105: Avondale Rosebank | C105: .. | D105: .. | E105: 1305 | F105: Avondale Rosebank | G105: 1.02743212 | H105: 1270.156903 | I105: =ROWS($A$3:A105) -> 103 | P105: =IFERROR(INDEX($F$3:$H$4612,$K105,COLUMNS($P$3:P105)),"") -> 
A106: Area Outside Region | B106: Avondale South (Auckland) | C106: .. | D106: .. | E106: 1353 | F106: Avondale South (Auckland) | G106: 1.17736514 | H106: 1149.176202 | I106: =ROWS($A$3:A106) -> 104 | P106: =IFERROR(INDEX($F$3:$H$4612,$K106,COLUMNS($P$3:P106)),"") -> 
A107: Area Outside Region | B107: Avondale West (Auckland) | C107: .. | D107: .. | E107: 1170 | F107: Avondale West (Auckland) | G107: 0.7398201 | H107: 1581.465548 | I107: =ROWS($A$3:A107) -> 105 | P107: =IFERROR(INDEX($F$3:$H$4612,$K107,COLUMNS($P$3:P107)),"") -> 
A108: Area Outside Region | B108: Avonhead East | C108: .. | D108: .. | E108: 993 | F108: Avonhead East | G108: 0.8351918 | H108: 1188.948455 | I108: =ROWS($A$3:A108) -> 106 | P108: =IFERROR(INDEX($F$3:$H$4612,$K108,COLUMNS($P$3:P108)),"") -> 
A109: Area Outside Region | B109: Avonhead North | C109: .. | D109: .. | E109: 570 | F109: Avonhead North | G109: 0.63463917 | H109: 898.1481556 | I109: =ROWS($A$3:A109) -> 107 | P109: =IFERROR(INDEX($F$3:$H$4612,$K109,COLUMNS($P$3:P109)),"") -> 
A110: Area Outside Region | B110: Avonhead South | C110: .. | D110: .. | E110: 1257 | F110: Avonhead South | G110: 1.0252514 | H110: 1226.040754 | I110: =ROWS($A$3:A110) -> 108 | P110: =IFERROR(INDEX($F$3:$H$4612,$K110,COLUMNS($P$3:P110)),"") -> 
A111: Area Outside Region | B111: Avonhead West | C111: .. | D111: .. | E111: 699 | F111: Avonhead West | G111: 0.61397696 | H111: 1138.479203 | I111: =ROWS($A$3:A111) -> 109 | P111: =IFERROR(INDEX($F$3:$H$4612,$K111,COLUMNS($P$3:P111)),"") -> 
A112: Area Outside Region | B112: Avonside | C112: .. | D112: .. | E112: 774 | F112: Avonside | G112: 0.81030652 | H112: 955.1940912 | I112: =ROWS($A$3:A112) -> 110 | P112: =IFERROR(INDEX($F$3:$H$4612,$K112,COLUMNS($P$3:P112)),"") -> 
A113: Area Outside Region | B113: Awahuri | C113: .. | D113: .. | E113: 819 | F113: Awahuri | G113: 126.3560618 | H113: 6.481683491 | I113: =ROWS($A$3:A113) -> 111 | P113: =IFERROR(INDEX($F$3:$H$4612,$K113,COLUMNS($P$3:P113)),"") -> 
A114: Area Outside Region | B114: Awapuni North | C114: .. | D114: .. | E114: 1332 | F114: Awapuni North | G114: 1.23350313 | H114: 1079.851334 | I114: =ROWS($A$3:A114) -> 112 | P114: =IFERROR(INDEX($F$3:$H$4612,$K114,COLUMNS($P$3:P114)),"") -> 
A115: Area Outside Region | B115: Awapuni South | C115: .. | D115: .. | E115: 1275 | F115: Awapuni South | G115: 1.70556788 | H115: 747.5516014 | I115: =ROWS($A$3:A115) -> 113 | P115: =IFERROR(INDEX($F$3:$H$4612,$K115,COLUMNS($P$3:P115)),"") -> 
A116: Area Outside Region | B116: Awarua Plains | C116: .. | D116: .. | E116: 408 | F116: Awarua Plains | G116: 409.0300853 | H116: 0.9974816393 | I116: =ROWS($A$3:A116) -> 114 | P116: =IFERROR(INDEX($F$3:$H$4612,$K116,COLUMNS($P$3:P116)),"") -> 
A117: Area Outside Region | B117: Awaruku | C117: .. | D117: .. | E117: 1503 | F117: Awaruku | G117: 1.52194123 | H117: 987.5545589 | I117: =ROWS($A$3:A117) -> 115 | P117: =IFERROR(INDEX($F$3:$H$4612,$K117,COLUMNS($P$3:P117)),"") -> 
A118: Area Outside Region | B118: Awatea North | C118: .. | D118: .. | E118: 810 | F118: Awatea North | G118: 1.02585862 | H118: 789.5824865 | I118: =ROWS($A$3:A118) -> 116 | P118: =IFERROR(INDEX($F$3:$H$4612,$K118,COLUMNS($P$3:P118)),"") -> 
A119: Area Outside Region | B119: Awatea South | C119: .. | D119: .. | E119: 546 | F119: Awatea South | G119: 1.51060273 | H119: 361.4451299 | I119: =ROWS($A$3:A119) -> 117 | P119: =IFERROR(INDEX($F$3:$H$4612,$K119,COLUMNS($P$3:P119)),"") -> 
A120: Area Outside Region | B120: Awatere | C120: .. | D120: .. | E120: 768 | F120: Awatere | G120: 3273.522586 | H120: 0.2346096536 | I120: =ROWS($A$3:A120) -> 118 | P120: =IFERROR(INDEX($F$3:$H$4612,$K120,COLUMNS($P$3:P120)),"") -> 
A121: Area Outside Region | B121: Awhitu | C121: .. | D121: .. | E121: 1575 | F121: Awhitu | G121: 221.5584474 | H121: 7.108733694 | I121: =ROWS($A$3:A121) -> 119 | P121: =IFERROR(INDEX($F$3:$H$4612,$K121,COLUMNS($P$3:P121)),"") -> 
A122: Area Outside Region | B122: Bader | C122: .. | D122: .. | E122: 843 | F122: Bader | G122: 1.09710993 | H122: 768.3824355 | I122: =ROWS($A$3:A122) -> 120 | P122: =IFERROR(INDEX($F$3:$H$4612,$K122,COLUMNS($P$3:P122)),"") -> 
A123: Area Outside Region | B123: Balcairn | C123: .. | D123: .. | E123: 1071 | F123: Balcairn | G123: 130.5751296 | H123: 8.202174515 | I123: =ROWS($A$3:A123) -> 121 | P123: =IFERROR(INDEX($F$3:$H$4612,$K123,COLUMNS($P$3:P123)),"") -> 
A124: Area Outside Region | B124: Balclutha North | C124: .. | D124: .. | E124: 705 | F124: Balclutha North | G124: 3.06857701 | H124: 229.7481855 | I124: =ROWS($A$3:A124) -> 122 | P124: =IFERROR(INDEX($F$3:$H$4612,$K124,COLUMNS($P$3:P124)),"") -> 
A125: Area Outside Region | B125: Balclutha South | C125: .. | D125: .. | E125: 1188 | F125: Balclutha South | G125: 4.51733499 | H125: 262.9869165 | I125: =ROWS($A$3:A125) -> 123 | P125: =IFERROR(INDEX($F$3:$H$4612,$K125,COLUMNS($P$3:P125)),"") -> 
A126: Area Outside Region | B126: Balgownie | C126: .. | D126: .. | E126: 69 | F126: Balgownie | G126: 2.8144437 | H126: 24.51639022 | I126: =ROWS($A$3:A126) -> 124 | P126: =IFERROR(INDEX($F$3:$H$4612,$K126,COLUMNS($P$3:P126)),"") -> 
A127: Area Outside Region | B127: Balmoral | C127: .. | D127: .. | E127: 1137 | F127: Balmoral | G127: 0.78483197 | H127: 1448.717743 | I127: =ROWS($A$3:A127) -> 125 | P127: =IFERROR(INDEX($F$3:$H$4612,$K127,COLUMNS($P$3:P127)),"") -> 
A128: Area Outside Region | B128: Banks Peninsula South | C128: .. | D128: .. | E128: 648 | F128: Banks Peninsula South | G128: 371.9112249 | H128: 1.742351283 | I128: =ROWS($A$3:A128) -> 126 | P128: =IFERROR(INDEX($F$3:$H$4612,$K128,COLUMNS($P$3:P128)),"") -> 
A129: Area Outside Region | B129: Bankside | C129: .. | D129: .. | E129: 696 | F129: Bankside | G129: 359.5626671 | H129: 1.93568483 | I129: =ROWS($A$3:A129) -> 127 | P129: =IFERROR(INDEX($F$3:$H$4612,$K129,COLUMNS($P$3:P129)),"") -> 
A130: Area Outside Region | B130: Bare Island | C130: .. | D130: .. | E130: 0 | F130: Bare Island | G130: 0.13162933 | H130: 0 | I130: =ROWS($A$3:A130) -> 128 | P130: =IFERROR(INDEX($F$3:$H$4612,$K130,COLUMNS($P$3:P130)),"") -> 
A131: Area Outside Region | B131: Barrier Islands | C131: .. | D131: .. | E131: 1158 | F131: =TRIM(B131) -> Barrier Islands | G131: 320.4141008 | H131: =E131/G131 -> 3.614073154 | I131: =ROWS($A$3:A131) -> 129 | J131: =IF(A131=$M$2,I132,"") ->  | P131: =IFERROR(INDEX($F$3:$H$4612,$K131,COLUMNS($P$3:P131)),"") -> 
A132: Area Outside Region | B132: Barrytown | C132: .. | D132: .. | E132: 567 | F132: Barrytown | G132: 731.220548 | H132: 0.7754158463 | I132: =ROWS($A$3:A132) -> 130 | K132: =IFERROR(SMALL($J$3:$J$4612,I132)-1,"") ->  | P132: =IFERROR(INDEX($F$3:$H$4612,$K132,COLUMNS($P$3:P132)),"") ->  | Q132: =IFERROR(VLOOKUP(P132,$F:$H,3,FALSE),"") -> 
A133: Area Outside Region | B133: Bastia-Durie Hill | C133: .. | D133: .. | E133: 996 | F133: Bastia-Durie Hill | G133: 2.57031195 | H133: 387.5016027 | I133: =ROWS($A$3:A133) -> 131 | P133: =IFERROR(INDEX($F$3:$H$4612,$K133,COLUMNS($P$3:P133)),"") -> 
A134: Area Outside Region | B134: Bathgate Park | C134: .. | D134: .. | E134: 1368 | F134: Bathgate Park | G134: 0.53137555 | H134: 2574.450405 | I134: =ROWS($A$3:A134) -> 132 | P134: =IFERROR(INDEX($F$3:$H$4612,$K134,COLUMNS($P$3:P134)),"") -> 
A135: Area Outside Region | B135: Baverstock | C135: .. | D135: .. | E135: 1059 | F135: Baverstock | G135: 1.09060982 | H135: 971.0163805 | I135: =ROWS($A$3:A135) -> 133 | P135: =IFERROR(INDEX($F$3:$H$4612,$K135,COLUMNS($P$3:P135)),"") -> 
A136: Area Outside Region | B136: Bay View | C136: .. | D136: .. | E136: 837 | F136: Bay View | G136: 29.16654342 | H136: 28.69726412 | I136: =ROWS($A$3:A136) -> 134 | P136: =IFERROR(INDEX($F$3:$H$4612,$K136,COLUMNS($P$3:P136)),"") -> 
A137: Area Outside Region | B137: Baypark-Kairua | C137: .. | D137: .. | E137: 189 | F137: Baypark-Kairua | G137: 12.95583883 | H137: 14.58801722 | I137: =ROWS($A$3:A137) -> 135 | P137: =IFERROR(INDEX($F$3:$H$4612,$K137,COLUMNS($P$3:P137)),"") -> 
A138: Area Outside Region | B138: Bays Waiheke Island | C138: .. | D138: .. | E138: 0 | F138: Bays Waiheke Island | G138: 0 | I138: =ROWS($A$3:A138) -> 136 | P138: =IFERROR(INDEX($F$3:$H$4612,$K138,COLUMNS($P$3:P138)),"") -> 
A139: Area Outside Region | B139: Bayswater | C139: .. | D139: .. | E139: 1140 | F139: Bayswater | G139: 1.09694838 | H139: 1039.246715 | I139: =ROWS($A$3:A139) -> 137 | P139: =IFERROR(INDEX($F$3:$H$4612,$K139,COLUMNS($P$3:P139)),"") -> 
A140: Area Outside Region | B140: Bayview East | C140: .. | D140: .. | E140: 1194 | F140: Bayview East | G140: 1.3746752 | H140: 868.5688081 | I140: =ROWS($A$3:A140) -> 138 | P140: =IFERROR(INDEX($F$3:$H$4612,$K140,COLUMNS($P$3:P140)),"") -> 
A141: Area Outside Region | B141: Bayview South | C141: .. | D141: .. | E141: 1005 | F141: Bayview South | G141: 0.93345761 | H141: 1076.642356 | I141: =ROWS($A$3:A141) -> 139 | P141: =IFERROR(INDEX($F$3:$H$4612,$K141,COLUMNS($P$3:P141)),"") -> 
A142: Area Outside Region | B142: Bayview West | C142: .. | D142: .. | E142: 783 | F142: Bayview West | G142: 0.73414884 | H142: 1066.541221 | I142: =ROWS($A$3:A142) -> 140 | P142: =IFERROR(INDEX($F$3:$H$4612,$K142,COLUMNS($P$3:P142)),"") -> 
A143: Area Outside Region | B143: Beach Haven East | C143: .. | D143: .. | E143: 1302 | F143: Beach Haven East | G143: 1.12103775 | H143: 1161.423868 | I143: =ROWS($A$3:A143) -> 141 | P143: =IFERROR(INDEX($F$3:$H$4612,$K143,COLUMNS($P$3:P143)),"") -> 
A144: Area Outside Region | B144: Beach Haven South | C144: .. | D144: .. | E144: 1161 | F144: Beach Haven South | G144: 1.34039733 | H144: 866.1610808 | I144: =ROWS($A$3:A144) -> 142 | P144: =IFERROR(INDEX($F$3:$H$4612,$K144,COLUMNS($P$3:P144)),"") -> 
A145: Area Outside Region | B145: Beach Haven West | C145: .. | D145: .. | E145: 1284 | F145: Beach Haven West | G145: 1.20746209 | H145: 1063.387423 | I145: =ROWS($A$3:A145) -> 143 | P145: =IFERROR(INDEX($F$3:$H$4612,$K145,COLUMNS($P$3:P145)),"") -> 
A146: Area Outside Region | B146: Beckenham | C146: .. | D146: .. | E146: 951 | F146: Beckenham | G146: 0.87656893 | H146: 1084.911828 | I146: =ROWS($A$3:A146) -> 144 | P146: =IFERROR(INDEX($F$3:$H$4612,$K146,COLUMNS($P$3:P146)),"") -> 
A147: Area Outside Region | B147: Beerescourt | C147: .. | D147: .. | E147: 885 | F147: Beerescourt | G147: 1.02007447 | H147: 867.5837167 | I147: =ROWS($A$3:A147) -> 145 | P147: =IFERROR(INDEX($F$3:$H$4612,$K147,COLUMNS($P$3:P147)),"") -> 
A148: Area Outside Region | B148: Belfast East | C148: .. | D148: .. | E148: 975 | F148: Belfast East | G148: 2.88148063 | H148: 338.3677092 | I148: =ROWS($A$3:A148) -> 146 | P148: =IFERROR(INDEX($F$3:$H$4612,$K148,COLUMNS($P$3:P148)),"") -> 
A149: Area Outside Region | B149: Belfast West | C149: .. | D149: .. | E149: 765 | F149: Belfast West | G149: 3.09764866 | H149: 246.9615131 | I149: =ROWS($A$3:A149) -> 147 | P149: =IFERROR(INDEX($F$3:$H$4612,$K149,COLUMNS($P$3:P149)),"") -> 
A150: Area Outside Region | B150: Bell Block East | C150: .. | D150: .. | E150: 1059 | F150: Bell Block East | G150: 7.67158861 | H150: 138.041813 | I150: =ROWS($A$3:A150) -> 148 | P150: =IFERROR(INDEX($F$3:$H$4612,$K150,COLUMNS($P$3:P150)),"") -> 
A151: Area Outside Region | B151: Bell Block West | C151: .. | D151: .. | E151: 1542 | F151: Bell Block West | G151: 4.19117751 | H151: 367.9156982 | I151: =ROWS($A$3:A151) -> 149 | P151: =IFERROR(INDEX($F$3:$H$4612,$K151,COLUMNS($P$3:P151)),"") -> 
A152: Area Outside Region | B152: Belleknowes | C152: .. | D152: .. | E152: 927 | F152: Belleknowes | G152: 1.12695015 | H152: 822.5740952 | I152: =ROWS($A$3:A152) -> 150 | P152: =IFERROR(INDEX($F$3:$H$4612,$K152,COLUMNS($P$3:P152)),"") -> 
A153: Area Outside Region | B153: Bellevue | C153: .. | D153: .. | E153: 1344 | F153: Bellevue | G153: 1.71527262 | H153: 783.5489148 | I153: =ROWS($A$3:A153) -> 151 | P153: =IFERROR(INDEX($F$3:$H$4612,$K153,COLUMNS($P$3:P153)),"") -> 
A154: Area Outside Region | B154: Belmont (Auckland) | C154: .. | D154: .. | E154: 1182 | F154: Belmont (Auckland) | G154: 1.15328719 | H154: 1024.896496 | I154: =ROWS($A$3:A154) -> 152 | P154: =IFERROR(INDEX($F$3:$H$4612,$K154,COLUMNS($P$3:P154)),"") -> 
A155: Area Outside Region | B155: Belmont (Lower Hutt City) | C155: .. | D155: .. | E155: 981 | F155: Belmont (Lower Hutt City) | G155: 2.36254907 | H155: 415.2294708 | I155: =ROWS($A$3:A155) -> 153 | P155: =IFERROR(INDEX($F$3:$H$4612,$K155,COLUMNS($P$3:P155)),"") -> 
A156: Area Outside Region | B156: Belmont Park | C156: .. | D156: .. | E156: 123 | F156: Belmont Park | G156: 29.47168982 | H156: 4.173496693 | I156: =ROWS($A$3:A156) -> 154 | P156: =IFERROR(INDEX($F$3:$H$4612,$K156,COLUMNS($P$3:P156)),"") -> 
A157: Area Outside Region | B157: Ben Cooper Park | C157: .. | D157: .. | E157: 996 | F157: Ben Cooper Park | G157: 0.91549518 | H157: 1087.935821 | I157: =ROWS($A$3:A157) -> 155 | P157: =IFERROR(INDEX($F$3:$H$4612,$K157,COLUMNS($P$3:P157)),"") -> 
A158: Area Outside Region | B158: Ben McLeod | C158: .. | D158: .. | E158: 153 | F158: Ben McLeod | G158: 842.3384467 | H158: 0.1816372037 | I158: =ROWS($A$3:A158) -> 156 | P158: =IFERROR(INDEX($F$3:$H$4612,$K158,COLUMNS($P$3:P158)),"") -> 
A159: Area Outside Region | B159: Benhar-Stirling | C159: .. | D159: .. | E159: 204 | F159: Benhar-Stirling | G159: 9.48147757 | H159: 21.51563388 | I159: =ROWS($A$3:A159) -> 157 | P159: =IFERROR(INDEX($F$3:$H$4612,$K159,COLUMNS($P$3:P159)),"") -> 
A160: Area Outside Region | B160: Berhampore | C160: .. | D160: .. | E160: 1674 | F160: Berhampore | G160: 1.39707499 | H160: 1198.217713 | I160: =ROWS($A$3:A160) -> 158 | P160: =IFERROR(INDEX($F$3:$H$4612,$K160,COLUMNS($P$3:P160)),"") -> 
A161: Area Outside Region | B161: Bethlehem Central | C161: .. | D161: .. | E161: 1620 | F161: Bethlehem Central | G161: 4.26573136 | H161: 379.7707505 | I161: =ROWS($A$3:A161) -> 159 | P161: =IFERROR(INDEX($F$3:$H$4612,$K161,COLUMNS($P$3:P161)),"") -> 
A162: Area Outside Region | B162: Bethlehem North | C162: .. | D162: .. | E162: 1461 | F162: Bethlehem North | G162: 5.12317947 | H162: 285.1744719 | I162: =ROWS($A$3:A162) -> 160 | P162: =IFERROR(INDEX($F$3:$H$4612,$K162,COLUMNS($P$3:P162)),"") -> 
A163: Area Outside Region | B163: Bethlehem South | C163: .. | D163: .. | E163: 369 | F163: Bethlehem South | G163: 4.48168383 | H163: 82.33512537 | I163: =ROWS($A$3:A163) -> 161 | P163: =IFERROR(INDEX($F$3:$H$4612,$K163,COLUMNS($P$3:P163)),"") -> 
A164: Area Outside Region | B164: Bexley | C164: .. | D164: .. | E164: 975 | F164: Bexley | G164: 0.89880765 | H164: 1084.770473 | I164: =ROWS($A$3:A164) -> 162 | P164: =IFERROR(INDEX($F$3:$H$4612,$K164,COLUMNS($P$3:P164)),"") -> 
A165: Area Outside Region | B165: Birchville-Brown Owl | C165: .. | D165: .. | E165: 1362 | F165: Birchville-Brown Owl | G165: 8.89289537 | H165: 153.1559681 | I165: =ROWS($A$3:A165) -> 163 | P165: =IFERROR(INDEX($F$3:$H$4612,$K165,COLUMNS($P$3:P165)),"") -> 
A166: Area Outside Region | B166: Bird Area | C166: .. | D166: .. | E166: 1176 | F166: Bird Area | G166: 1.17912862 | H166: 997.3466677 | I166: =ROWS($A$3:A166) -> 164 | P166: =IFERROR(INDEX($F$3:$H$4612,$K166,COLUMNS($P$3:P166)),"") -> 
A167: Area Outside Region | B167: Birdwood West | C167: .. | D167: .. | E167: 222 | F167: Birdwood West | G167: 5.93628175 | H167: 37.39714679 | I167: =ROWS($A$3:A167) -> 165 | P167: =IFERROR(INDEX($F$3:$H$4612,$K167,COLUMNS($P$3:P167)),"") -> 
A168: Area Outside Region | B168: Birkdale North | C168: .. | D168: .. | E168: 1374 | F168: Birkdale North | G168: 1.38573801 | H168: 991.5294162 | I168: =ROWS($A$3:A168) -> 166 | P168: =IFERROR(INDEX($F$3:$H$4612,$K168,COLUMNS($P$3:P168)),"") -> 
A169: Area Outside Region | B169: Birkdale South | C169: .. | D169: .. | E169: 1620 | F169: Birkdale South | G169: 1.40729671 | H169: 1151.143173 | I169: =ROWS($A$3:A169) -> 167 | P169: =IFERROR(INDEX($F$3:$H$4612,$K169,COLUMNS($P$3:P169)),"") -> 
A170: Area Outside Region | B170: Birkenhead North | C170: .. | D170: .. | E170: 1116 | F170: Birkenhead North | G170: 1.01193257 | H170: 1102.840281 | I170: =ROWS($A$3:A170) -> 168 | P170: =IFERROR(INDEX($F$3:$H$4612,$K170,COLUMNS($P$3:P170)),"") -> 
A171: Area Outside Region | B171: Birkenhead South | C171: .. | D171: .. | E171: 1221 | F171: Birkenhead South | G171: 1.36168693 | H171: 896.6818827 | I171: =ROWS($A$3:A171) -> 169 | P171: =IFERROR(INDEX($F$3:$H$4612,$K171,COLUMNS($P$3:P171)),"") -> 
A172: Area Outside Region | B172: Birkenhead West | C172: .. | D172: .. | E172: 1803 | F172: Birkenhead West | G172: 2.26268676 | H172: 796.8403015 | I172: =ROWS($A$3:A172) -> 170 | P172: =IFERROR(INDEX($F$3:$H$4612,$K172,COLUMNS($P$3:P172)),"") -> 
A173: Area Outside Region | B173: Bishopdale North | C173: .. | D173: .. | E173: 1701 | F173: Bishopdale North | G173: 1.3684224 | H173: 1243.037238 | I173: =ROWS($A$3:A173) -> 171 | P173: =IFERROR(INDEX($F$3:$H$4612,$K173,COLUMNS($P$3:P173)),"") -> 
A174: Area Outside Region | B174: Bishopdale South | C174: .. | D174: .. | E174: 849 | F174: Bishopdale South | G174: 0.70451597 | H174: 1205.08269 | I174: =ROWS($A$3:A174) -> 172 | P174: =IFERROR(INDEX($F$3:$H$4612,$K174,COLUMNS($P$3:P174)),"") -> 
A175: Area Outside Region | B175: Bishopdale West | C175: .. | D175: .. | E175: 1146 | F175: Bishopdale West | G175: 1.13060616 | H175: 1013.615564 | I175: =ROWS($A$3:A175) -> 173 | P175: =IFERROR(INDEX($F$3:$H$4612,$K175,COLUMNS($P$3:P175)),"") -> 
A176: Area Outside Region | B176: Blagdon-Lynmouth | C176: .. | D176: .. | E176: 1032 | F176: Blagdon-Lynmouth | G176: 1.15856977 | H176: 890.753433 | I176: =ROWS($A$3:A176) -> 174 | P176: =IFERROR(INDEX($F$3:$H$4612,$K176,COLUMNS($P$3:P176)),"") -> 
A177: Area Outside Region | B177: Blaketown | C177: .. | D177: .. | E177: 411 | F177: Blaketown | G177: 0.74298173 | H177: 553.1764556 | I177: =ROWS($A$3:A177) -> 175 | P177: =IFERROR(INDEX($F$3:$H$4612,$K177,COLUMNS($P$3:P177)),"") -> 
A178: Area Outside Region | B178: Bledisloe Park | C178: .. | D178: .. | E178: 975 | F178: Bledisloe Park | G178: 0.8827168 | H178: 1104.544515 | I178: =ROWS($A$3:A178) -> 176 | P178: =IFERROR(INDEX($F$3:$H$4612,$K178,COLUMNS($P$3:P178)),"") -> 
A179: Area Outside Region | B179: Blenheim Central | C179: .. | D179: .. | E179: 510 | F179: Blenheim Central | G179: 1.5515344 | H179: 328.7068595 | I179: =ROWS($A$3:A179) -> 177 | P179: =IFERROR(INDEX($F$3:$H$4612,$K179,COLUMNS($P$3:P179)),"") -> 
A180: Area Outside Region | B180: Blockhouse Bay East | C180: .. | D180: .. | E180: 864 | F180: Blockhouse Bay East | G180: 0.77910259 | H180: 1108.968204 | I180: =ROWS($A$3:A180) -> 178 | P180: =IFERROR(INDEX($F$3:$H$4612,$K180,COLUMNS($P$3:P180)),"") -> 
A181: Area Outside Region | B181: Blockhouse Bay North | C181: .. | D181: .. | E181: 1230 | F181: Blockhouse Bay North | G181: 0.92504226 | H181: 1329.668982 | I181: =ROWS($A$3:A181) -> 179 | P181: =IFERROR(INDEX($F$3:$H$4612,$K181,COLUMNS($P$3:P181)),"") -> 
A182: Area Outside Region | B182: Blockhouse Bay North East | C182: .. | D182: .. | E182: 684 | F182: Blockhouse Bay North East | G182: 0.52948071 | H182: 1291.831765 | I182: =ROWS($A$3:A182) -> 180 | P182: =IFERROR(INDEX($F$3:$H$4612,$K182,COLUMNS($P$3:P182)),"") -> 
A183: Area Outside Region | B183: Blockhouse Bay South | C183: .. | D183: .. | E183: 1434 | F183: Blockhouse Bay South | G183: 1.67086642 | H183: 858.2373688 | I183: =ROWS($A$3:A183) -> 181 | P183: =IFERROR(INDEX($F$3:$H$4612,$K183,COLUMNS($P$3:P183)),"") -> 
A184: Area Outside Region | B184: Bluff | C184: .. | D184: .. | E184: 912 | F184: Bluff | G184: 10.09934639 | H184: 90.30287355 | I184: =ROWS($A$3:A184) -> 182 | P184: =IFERROR(INDEX($F$3:$H$4612,$K184,COLUMNS($P$3:P184)),"") -> 
A185: Area Outside Region | B185: Bluff Hill | C185: .. | D185: .. | E185: 1254 | F185: Bluff Hill | G185: 1.89023838 | H185: 663.4083898 | I185: =ROWS($A$3:A185) -> 183 | P185: =IFERROR(INDEX($F$3:$H$4612,$K185,COLUMNS($P$3:P185)),"") -> 
A186: Area Outside Region | B186: Bombay Hills | C186: .. | D186: .. | E186: 738 | F186: Bombay Hills | G186: 31.68201967 | H186: 23.2939695 | I186: =ROWS($A$3:A186) -> 184 | P186: =IFERROR(INDEX($F$3:$H$4612,$K186,COLUMNS($P$3:P186)),"") -> 
A187: Area Outside Region | B187: Botany Central | C187: .. | D187: .. | E187: 3 | F187: Botany Central | G187: 0.46967107 | H187: 6.387448986 | I187: =ROWS($A$3:A187) -> 185 | P187: =IFERROR(INDEX($F$3:$H$4612,$K187,COLUMNS($P$3:P187)),"") -> 
A188: Area Outside Region | B188: Botany Downs East | C188: .. | D188: .. | E188: 807 | F188: Botany Downs East | G188: 0.67735204 | H188: 1191.404104 | I188: =ROWS($A$3:A188) -> 186 | P188: =IFERROR(INDEX($F$3:$H$4612,$K188,COLUMNS($P$3:P188)),"") -> 
A189: Area Outside Region | B189: Botany Downs West | C189: .. | D189: .. | E189: 921 | F189: Botany Downs West | G189: 0.81388434 | H189: 1131.61042 | I189: =ROWS($A$3:A189) -> 187 | P189: =IFERROR(INDEX($F$3:$H$4612,$K189,COLUMNS($P$3:P189)),"") -> 
A190: Area Outside Region | B190: Botany East | C190: .. | D190: .. | E190: 606 | F190: Botany East | G190: 0.78144969 | H190: 775.4817844 | I190: =ROWS($A$3:A190) -> 188 | P190: =IFERROR(INDEX($F$3:$H$4612,$K190,COLUMNS($P$3:P190)),"") -> 
A191: Area Outside Region | B191: Botany Junction | C191: .. | D191: .. | E191: 78 | F191: Botany Junction | G191: 2.48251702 | H191: 31.41972416 | I191: =ROWS($A$3:A191) -> 189 | P191: =IFERROR(INDEX($F$3:$H$4612,$K191,COLUMNS($P$3:P191)),"") -> 
A192: Area Outside Region | B192: Botany North | C192: .. | D192: .. | E192: 825 | F192: Botany North | G192: 0.92492593 | H192: 891.9633165 | I192: =ROWS($A$3:A192) -> 190 | P192: =IFERROR(INDEX($F$3:$H$4612,$K192,COLUMNS($P$3:P192)),"") -> 
A193: Area Outside Region | B193: Botany South | C193: .. | D193: .. | E193: 975 | F193: Botany South | G193: 0.74938028 | H193: 1301.07507 | I193: =ROWS($A$3:A193) -> 191 | P193: =IFERROR(INDEX($F$3:$H$4612,$K193,COLUMNS($P$3:P193)),"") -> 
A194: Area Outside Region | B194: Boulcott | C194: .. | D194: .. | E194: 990 | F194: Boulcott | G194: 1.58246938 | H194: 625.604522 | I194: =ROWS($A$3:A194) -> 192 | P194: =IFERROR(INDEX($F$3:$H$4612,$K194,COLUMNS($P$3:P194)),"") -> 
A195: Area Outside Region | B195: Bounty Islands | C195: .. | D195: .. | E195: 0 | F195: =TRIM(B195) -> Bounty Islands | G195: 0 | H195: =E195/G195 ->  | I195: =ROWS($A$3:A195) -> 193 | J195: =IF(A195=$M$2,I196,"") ->  | P195: =IFERROR(INDEX($F$3:$H$4612,$K195,COLUMNS($P$3:P195)),"") -> 
A196: Area Outside Region | B196: Bounty Islands | C196: .. | D196: .. | E196: 0 | F196: Bounty Islands | G196: 0 | I196: =ROWS($A$3:A196) -> 194 | K196: =IFERROR(SMALL($J$3:$J$4612,I196)-1,"") ->  | P196: =IFERROR(INDEX($F$3:$H$4612,$K196,COLUMNS($P$3:P196)),"") ->  | Q196: =IFERROR(VLOOKUP(P196,$F:$H,3,FALSE),"") -> 
A197: Area Outside Region | B197: Bream Bay | C197: .. | D197: .. | E197: 834 | F197: Bream Bay | G197: 235.3179838 | H197: 3.544140513 | I197: =ROWS($A$3:A197) -> 195 | P197: =IFERROR(INDEX($F$3:$H$4612,$K197,COLUMNS($P$3:P197)),"") -> 
A198: Area Outside Region | B198: Bream Head | C198: .. | D198: .. | E198: 837 | F198: Bream Head | G198: 52.18004192 | H198: 16.04061571 | I198: =ROWS($A$3:A198) -> 196 | P198: =IFERROR(INDEX($F$3:$H$4612,$K198,COLUMNS($P$3:P198)),"") -> 
A199: Area Outside Region | B199: Brentwood (Taupo District) | C199: .. | D199: .. | E199: 894 | F199: Brentwood (Taupo District) | G199: 3.55543198 | H199: 251.4462392 | I199: =ROWS($A$3:A199) -> 197 | P199: =IFERROR(INDEX($F$3:$H$4612,$K199,COLUMNS($P$3:P199)),"") -> 
A200: Area Outside Region | B200: Brentwood (Upper Hutt City) | C200: .. | D200: .. | E200: 831 | F200: Brentwood (Upper Hutt City) | G200: 0.98266197 | H200: 845.6621151 | I200: =ROWS($A$3:A200) -> 198 | P200: =IFERROR(INDEX($F$3:$H$4612,$K200,COLUMNS($P$3:P200)),"") -> 
... 4412 more rows
